Cogmind - Beta 16.1 @@@ ROGUE MODE // 2026.03.11 @ 17:51:03 Player: KURIIRI Result: Self-destructed Performance ------------- Evolutions (2) 1000 Regions Visited (7) 1400 Robots Destroyed (120) 600 Value Destroyed (3318) 3318 Prototype IDs (33) 660 Alien Tech Used (0) 0 Bonus (290) 290 TOTAL SCORE: 7268 Bonus ------- High Alert Combat Kills 25 Aligned with FarCom 300 Friendly Fire -35 Cogmind --------- Core Integrity 380/550 Matter 93/300 Energy 103/265 System Corruption 1% Temperature Cool (0) Movement Treading (160) Location -8/Materials Parts ------- > --- POWER (1) -------- Improved Ion Engine > --- PROPULSION (3) --- Medium Treads Medium Treads Medium Treads > --- UTILITY (5) ------ High-capacity Storage Unit Light Armor Plating Hacking Suite System Shield > --- WEAPON (2) ------- Light EM Pulse Cannon Advanced EMP Blaster > --- INVENTORY (20) --- Medium Treads Medium Treads Medium Treads Medium Treads Compact Wheel Cooling System Compact Battery (200) Trap Scanner System Shield Guided Plasma Cannon Assault Cannon Assault Cannon Advanced EMP Blaster Missile Launcher Plasma Cutter Peak State ------------ > --- POWER ------------ Improved Ion Engine > --- PROPULSION ------- Medium Treads Medium Treads Medium Treads > --- UTILITY ---------- High-capacity Storage Unit Trap Scanner Medium Armor Plating Hacking Suite System Shield > --- WEAPON ----------- Light EM Pulse Cannon Advanced EMP Blaster > --- INVENTORY -------- Advanced Treads Advanced Treads Advanced Treads Medium Treads Medium Treads Medium Treads Medium Treads Medium Treads Compact Wheel Compact Wheel Cooling System Light Armor Plating Light Armor Plating System Shield Guided Plasma Cannon Assault Cannon Assault Cannon Rocket Launcher Missile Launcher Plasma Cutter [Rating: 37] Favorites ----------- Power Improved Ion Engine Engine Improved Ion Engine Propulsion Light Treads Treads Light Treads Leg Aluminum Leg Wheel Compact Wheel Utility High-capacity Storage Unit Device Trap Scanner Storage High-capacity Storage Unit Processor Salvage Targeting Computer Hackware System Shield Protection Light Armor Plating Weapon Light EM Pulse Cannon Energy Gun Beam Rifle Energy Cannon Light EM Pulse Cannon Ballistic Gun Assault Rifle Ballistic Cannon Assault Cannon Launcher Grenade Launcher Special Weapon Plasma Cutter Build | -11 -10 -10 -9 -9 -9 -8 -8 ------- Run | Yrd Mat Min Mat Min Exi Min Mat Slots Evolved 4 | . . . 2 . . . 2 Power . | . . . . . . . . Propulsion 1 | . . . 1 . . . . Utility 3 | . . . 1 . . . 2 Weapon . | . . . . . . . . Parts Attached 60 | . 15 3 17 4 1 . 20 Power 6 | . 1 . 2 1 . . 2 Engine 6 | . 1 . 2 1 . . 2 Core . | . . . . . . . . Reactor . | . . . . . . . . Propulsion 19 | . 4 1 6 1 1 . 6 Treads 15 | . 2 1 5 . 1 . 6 Leg . | . . . . . . . . Wheel 4 | . 2 . 1 1 . . . Hover . | . . . . . . . . Flight . | . . . . . . . . Utility 15 | . 4 1 2 1 . . 7 Device 2 | . . 1 . . . . 1 Storage 2 | . 2 . . . . . . Processor 2 | . 2 . . . . . . Hackware 2 | . . . . . . . 2 Protection 7 | . . . 2 1 . . 4 Artifact . | . . . . . . . . Weapon 20 | . 6 1 7 1 . . 5 Energy Gun 5 | . 3 . 1 . . . 1 Energy Cannon 5 | . . . 4 1 . . . Ballistic Gun 2 | . 1 . 1 . . . . Ballistic Cannon 2 | . . . . . . . 2 Launcher 5 | . 1 1 1 . . . 2 Special Weapon 1 | . 1 . . . . . . Impact Weapon . | . . . . . . . . Slashing Weapon . | . . . . . . . . Piercing Weapon . | . . . . . . . . Special Melee Weapon . | . . . . . . . . Unidentified Prototypes 5 | . . 1 3 . . . 1 Parts Lost 16 | . 3 2 2 5 . . 4 Power 2 | . 1 . . 1 . . . Propulsion 5 | . 1 1 2 1 . . . Utility 5 | . . . . 2 . . 3 Weapon 4 | . 1 1 . 1 . . 1 Highest Loss Streak 5 | . 2 1 1 5 . . 1 To Critical Strikes . | . . . . . . . . Average Backups 15 | 6 7 10 16 18 19 18 17 Power . | 1 . . . . . . . Propulsion 4 | 4 3 3 4 5 5 5 6 Utility 2 | . . 1 2 3 3 3 3 Weapon 6 | 1 2 4 8 8 10 9 6 Tool/Special . | . . . . . . . . Unused Backups 29 | . 2 . 7 . 2 . 18 Power 1 | . 1 . . . . . . Propulsion 15 | . . . 3 . . . 12 Utility 6 | . 1 . 1 . 1 . 3 Weapon 7 | . . . 3 . 1 . 3 Tool/Special . | . . . . . . . . Average Slot Usage (%) 92 | . 98 90 96 88 66 81 94 Engine 10 | . 13 14 10 9 11 11 8 Treads 22 | . 15 13 22 24 32 33 23 Wheel 7 | . 11 14 9 7 . . 3 Device 1 | . . . . . . . 4 Storage 11 | . 14 14 11 11 11 11 9 Processor 2 | . 12 5 . . . . . Hackware 4 | . . . . . . . 14 Protection 11 | . . . 20 13 11 11 11 Energy Gun 4 | . 21 14 . . . . . Energy Cannon 11 | . . . 19 17 . 15 11 Ballistic Cannon 1 | . . . . . . . 5 Launcher 2 | . 1 14 1 3 . . . Peak Build Rating 37 | 6 11 17 22 22 19 21 37 Average Rating 18 | 6 9 9 14 19 17 20 30 On Entrance 13 | 6 6 10 9 22 18 18 21 Avg Prop Armor Cover (%) 13 | . 13 13 12 18 . . 12 Naked Turns . | . . . . . . . . Heaviest Build 66 | 13 51 52 62 61 55 56 66 Greatest Support 84 | 20 40 16 62 62 62 62 84 Greatest Overweight (x) 4 | . 3 3 3 3 3 . 4 Average Overweight (x) 2 | . 2 3 2 2 . . 1 Largest Inventory Capacity 20 | 8 20 20 20 20 20 20 20 Average Capacity 19 | 8 19 20 20 20 20 20 20 Most Carried 20 | 6 9 12 20 20 20 20 20 Average Carried 15 | 6 7 10 16 17 19 18 17 Final Capacity 20 | 8 20 20 20 20 20 20 20 Final Carried 20 | 6 8 10 20 19 20 18 15 Class Distribution -------------------- 66% | Mutant 20% | Hacker-Mutant 12% | Scavenger-Mutant Dominant Class ---------------- Mutant | -10/Materials Mutant | -10/Mines Mutant | -9/Materials Mutant | -9/Mines Mutant | -9/Exiles Mutant | -8/Mines Hacker-Mutant | -8/Materials Resources | -11 -10 -10 -9 -9 -9 -8 -8 ----------- Run | Yrd Mat Min Mat Min Exi Min Mat Matter Collected 1653 | 200 91 219 489 100 . 69 485 Remotely . | . . . . . . . . Salvage Created 3957 | . 461 93 1839 150 . 60 1354 Parts 231 | . 23 9 107 14 . 4 74 Haulers Intercepted 8 | . . . 5 . . . 3 Recyclers Shooed 4 | . . . 1 . . 1 2 Parts Field Recycled . | . . . . . . . . Retrieved Matter . | . . . . . . . . Parts Self-Destructed . | . . . . . . . . Prevented . | . . . . . . . . Parts Restored . | . . . . . . . . Kills | -11 -10 -10 -9 -9 -9 -8 -8 ------- Run | Yrd Mat Min Mat Min Exi Min Mat Combat Hostiles Destroyed 84 | . 9 4 34 12 . 1 24 Guns 8 | . 5 3 . . . . . Cannons 35 | . . . 18 3 . . 14 AOE 38 | . 4 1 15 9 . . 9 Classes Destroyed 15 | . 6 1 3 2 . 2 1 Worker 5 | . 1 . 1 2 . . 1 Builder 5 | . 2 . 1 . . . 2 Tunneler 1 | . . . . . . 1 . Hauler 8 | . . . 5 . . . 3 Recycler 6 | . 1 . 3 . . . 2 Mechanic 1 | . . . . . . . 1 Operator 3 | . . . 2 . . . 1 Watcher 11 | . 2 . 5 . . . 4 Swarmer 25 | . 3 3 7 7 . . 5 Grunt 30 | . 6 . 16 . . . 8 Duelist 2 | . . . 1 . . . 1 Sentry 17 | . . 1 10 . . . 6 Demolisher 1 | . . . . 1 . . . Hunter 5 | . . . . . . 1 4 Assembled 4 | . . . . 4 . . . Best Kill Streak 12 | . 5 3 8 4 . 2 12 Combat Bots Only 6 | . 3 3 6 4 . 1 6 Max Kills in Single Turn 4 | . 3 1 3 4 . 1 3 Gunslinging . | . . . . . . . . Exploded 4 | . 1 1 3 4 . . 2 Melee . | . . . . . . . . Uniques/NPCs Destroyed . | . . . . . . . . Combat | -11 -10 -10 -9 -9 -9 -8 -8 -------- Run | Yrd Mat Min Mat Min Exi Min Mat Hostile Shots Fired 277 | . 49 11 73 32 . 5 107 Missed 70 | . 12 2 18 6 . . 32 Hits 207 | . 37 9 55 26 . 5 75 Melee 3 | . . . . . . . 3 Projectile 204 | . 37 9 55 26 . 5 72 AOE 13 | . . . . 13 . . . Critical Strikes 8 | . . . 2 . . . 6 Damage Taken 3631 | . 430 108 801 1036 . 80 1176 Core 552 | . 71 8 99 204 . . 170 Absorbed by Shields . | . . . . . . . . Regen/Repaired (Parts) 201 | . . . 201 . . . . Core Remaining (%) 64 | 100 . 68 . . . 24 . Volleys Fired 259 | . 55 9 88 17 . 4 86 Largest 2 | . 2 2 2 2 . 2 2 Hottest 112 | . 112 89 112 112 . 112 112 Shots Fired 392 | . 84 10 144 19 . 5 130 Gun 85 | . 77 8 . . . . . Cannon 257 | . . . 126 15 . 5 111 Launcher 50 | . 7 2 18 4 . . 19 Special . | . . . . . . . . Kinetic 52 | . 9 . . . . . 43 Thermal 50 | . 42 8 . . . . . Explosive 37 | . 7 2 18 4 . . 6 Electromagnetic 253 | . 26 . 126 15 . 5 81 Robot Hit Streak 22 | . 8 4 20 22 . 4 22 Robot Miss Streak 7 | . 7 2 3 1 . 1 3 Penetration Max . | . . . . . . . . Secondary Targets . | . . . . . . . . Shots Hit Robots 243 | . 38 4 98 16 . 4 83 Core Hits 166 | . 22 6 66 18 . 3 51 Critical Kills . | . . . . . . . . Critical Parts Destroyed . | . . . . . . . . Critical Strikes 7 | . 3 1 1 . . . 2 Burn 4 | . 3 1 . . . . . Blast 1 | . . . . . . . 1 Corrupt 2 | . . . 1 . . . 1 Melee Attacks . | . . . . . . . . Impact . | . . . . . . . . Slashing . | . . . . . . . . Piercing . | . . . . . . . . Sneak Attacks . | . . . . . . . . Combat Hostiles . | . . . . . . . . Follow-up Attacks . | . . . . . . . . Damage Inflicted 8750 | . 1032 131 3415 788 . 173 3211 Guns 672 | . 586 86 . . . . . Cannons 4394 | . . . 2153 256 . 89 1896 Explosions 3671 | . 446 45 1262 523 . 80 1315 Melee . | . . . . . . . . Ramming 13 | . . . . 9 . 4 . Kinetic 802 | . 25 . . . . . 777 Thermal 1628 | . 538 86 365 227 . 80 332 Explosive 2230 | . 288 45 897 296 . . 704 Electromagnetic 4077 | . 181 . 2153 256 . 89 1398 Impact . | . . . . . . . . Slashing . | . . . . . . . . Piercing . | . . . . . . . . Highest Corruption 4 | . . . . 4 4 4 1 Average Corruption 3 | . . . . 4 4 4 1 Corruption Purged . | . . . . . . . . Corruption Blocked . | . . . . . . . . Effects 29 | . . . . 10 8 10 1 Message Errors 8 | . . . . 5 2 1 . Matter Fused 9 | . . . . 2 3 3 1 Heat Flow Errors 4 | . . . . 1 . 3 . Energy Discharges 2 | . . . . . 1 1 . Data Loss (minor) 5 | . . . . 2 1 2 . Alerts 1 | . . . . . 1 . . Overload Shots . | . . . . . . . . Overflow Damage 172 | . . . 67 65 . . 40 Projectiles 36 | . . . 20 10 . . 6 Explosions 136 | . . . 47 55 . . 34 Melee . | . . . . . . . . Knockbacks 7 | . . . . . . . 7 Impact . | . . . . . . . . Kinetic 7 | . . . . . . . 7 Secondary . | . . . . . . . . Self-Inflicted Damage 189 | . 24 . 92 20 . . 53 Shots 7 | . 1 . 2 1 . . 3 Rammed 3 | . . . . 1 . 2 . Targets Rammed 3 | . . . . 1 . 2 . Kicked . | . . . . . . . . Crushed . | . . . . . . . . Highest Temperature 392 | . 292 293 392 268 . 275 242 Average Temperature 94 | . 102 78 112 59 . 114 66 Received Heat Transfer 955 | . 156 27 318 40 . . 414 Effects 1 | . . . 1 . . . . Interference 1 | . . . 1 . . . . Siege Activations . | . . . . . . . . Martial Activations . | . . . . . . . . Shielding Activations . | . . . . . . . . Robots Disrupted . | . . . . . . . . Combat Hostiles . | . . . . . . . . Robots Corrupted 3 | . . . 1 . . 1 1 Combat Hostiles 3 | . . . 1 . . 1 1 Parts Fried 21 | . . . 17 . . 1 3 Impact Corruptions . | . . . . . . . . Robots Melted . | . . . . . . . . Combat Hostiles . | . . . . . . . . Parts Melted 5 | . 4 1 . . . . . Heat Transferred 2730 | . 1334 296 300 350 . 50 400 Parts Sabotaged . | . . . . . . . . Parts Stolen . | . . . . . . . . Parts Stripped . | . . . . . . . . Power Chain Reactions 12 | . 2 . 4 1 . 1 4 Alert | -11 -10 -10 -9 -9 -9 -8 -8 ------- Run | Yrd Mat Min Mat Min Exi Min Mat Maximum Alert Level 2 | . . . 2 1 . . 2 Low Security (%) 67 | 100 100 100 9 45 . 100 99 Level 1 28 | . . . 77 54 . . . Level 2 3 | . . . 12 . . . . Level 3 . | . . . . . . . . Level 4 . | . . . . . . . . Level 5 . | . . . . . . . . High Security . | . . . . . . . . Max Security . | . . . . . . . . Peak Influence 504 | . 155 127 504 305 . 41 414 Initial 189 | . . . 49 189 . . . Average 131 | . 42 5 274 193 . 4 75 Influence Increases 3234 | . 405 165 1229 400 . 41 994 Destroy 0b10 Robot/C 1600 | . 180 80 680 160 . 20 480 Destroy 0b10 Robot/NC 200 | . 30 . 85 10 . 5 70 Destroy Leader 418 | . 44 10 190 20 . 10 144 Allied During Kill 8 | . . . . 8 . . . Successful Hack 113 | . 21 . 79 . . . 13 Disable Machine 345 | . 45 75 45 135 . . 45 Anti-Garrison Action 150 | . . . . . . . 150 Destroy Structure 340 | . 55 . 150 52 . 6 77 Lose Combat Pursuer 60 | . 30 . . 15 . . 15 Influence Decreases 2820 | . 405 38 870 657 229 41 580 Entered New Map 604 | . . . 78 297 229 . . Time Decay 1926 | . 385 28 622 310 . 41 540 Lost Part 140 | . 20 10 20 50 . . 40 Purge Threat 150 | . . . 150 . . . . Squads Dispatched 12 | . 3 . 2 . . . 7 Investigation 4 | . 2 . 1 . . . 1 Extermination . | . . . . . . . . Reinforcement 4 | . 1 . 1 . . . 2 Assault 2 | . . . . . . . 2 Garrison 2 | . . . . . . . 2 Intercept . | . . . . . . . . Searches Triggered . | . . . . . . . . Construction Impeded . | . . . . . . . . Haulers Reinforced . | . . . . . . . . Active Scanning Responses . | . . . . . . . . Cargo Convoy Interrupts . | . . . . . . . . Stealth | -11 -10 -10 -9 -9 -9 -8 -8 --------- Run | Yrd Mat Min Mat Min Exi Min Mat Distress Signals 7 | . 1 . 3 . . . 3 Communications Jammed . | . . . . . . . . Distress Signals . | . . . . . . . . Times Spotted 121 | . 17 5 39 25 . 1 34 Peak Tracking Total 11 | . 4 3 4 11 . 1 6 Tactical Retreats 4 | . 2 . . 1 . . 1 Traps | -11 -10 -10 -9 -9 -9 -8 -8 ------- Run | Yrd Mat Min Mat Min Exi Min Mat Traps Triggered 2 | . 1 . . . . . 1 Indirectly 1 | . . . . . . . 1 Trap Hack Attempts . | . . . . . . . . Triggered . | . . . . . . . . Disarmed . | . . . . . . . . Reprogrammed . | . . . . . . . . Reused . | . . . . . . . . Traps Extracted . | . . . . . . . . Installed . | . . . . . . . . Triggered . | . . . . . . . . Machines | -11 -10 -10 -9 -9 -9 -8 -8 ---------- Run | Yrd Mat Min Mat Min Exi Min Mat Machines Disabled 24 | . 3 5 3 9 . . 4 Max in Single Turn 9 | . 1 4 1 9 . . 3 Garrison Access 1 | . . . . . . . 1 Machines Repaired . | . . . . . . . . Machines Dismantled 1 | . 1 . . . . . . Machines Sabotaged . | . . . . . . . . Overloaded Fab Kills . | . . . . . . . . Hacking | -11 -10 -10 -9 -9 -9 -8 -8 --------- Run | Yrd Mat Min Mat Min Exi Min Mat Machines Accessed 27 | . 4 . 13 . 2 . 8 Terminals 21 | . 4 . 10 . . . 7 Fabricators . | . . . . . . . . Repair Stations 1 | . . . 1 . . . . Recycling Units . | . . . . . . . . Scanalyzers 3 | . . . 2 . . . 1 Garrison Access . | . . . . . . . . Total Hacks 102 | . 12 . 40 . 5 . 45 Successful 62 | . 6 . 26 . 5 . 25 Failed 38 | . 6 . 13 . . . 19 Catastrophic 6 | . 2 . 4 . . . . Database Lockouts 2 | . . . 1 . . . 1 Manual 59 | . 13 . 17 . 1 . 28 Terminals 82 | . 12 . 28 . . . 42 Fabricators . | . . . . . . . . Repair Stations 5 | . . . 5 . . . . Recycling Units . | . . . . . . . . Scanalyzers 10 | . . . 7 . . . 3 Garrison Access . | . . . . . . . . Terminal Hacks 29 | . 2 . 7 . 5 . 15 Record 4 | . . . . . 4 . . Robot Analysis 4 | . 1 . 1 . . . 2 Prototype ID Bank 4 | . . . 1 . . . 3 Emergency Access Points 2 | . . . 1 . . . 1 Terminal Index 2 | . 1 . . . . . 1 Garrison Index 1 | . . . . . . . 1 Alert Level 3 | . . . 1 . . . 2 Unreport Threat 1 | . . . 1 . . . . Locate Traps 4 | . . . 1 . . . 3 Surveillance Status 1 | . . . 1 . . . . Zone Layout 2 | . . . . . . . 2 Proto ID Catalog 1 | . . . . . 1 . . Fabricator Hacks . | . . . . . . . . Repair Station Hacks 4 | . . . 4 . . . . Scan Component 2 | . . . 2 . . . . Repair 2 | . . . 2 . . . . Recycling Unit Hacks . | . . . . . . . . Scanalyzer 7 | . . . 6 . . . 1 Insert Component 1 | . . . 1 . . . . Analyze 2 | . . . 2 . . . . Retrieve Study 4 | . . . 3 . . . 1 Garrison Access Hacks . | . . . . . . . . Unauthorized Hacks 22 | . 4 . 9 . . . 9 Terminals 22 | . 4 . 9 . . . 9 Assimilate 1 | . . . . . . . 1 Botnet 7 | . 1 . 3 . . . 3 Operators 2 | . 1 . 1 . . . . Skim 12 | . 2 . 5 . . . 5 Fabricators . | . . . . . . . . Repair Stations . | . . . . . . . . Recycling Units . | . . . . . . . . Scanalyzers . | . . . . . . . . Garrison Access . | . . . . . . . . Data Cores Recovered 1 | . . . 1 . . . . Used . | . . . . . . . . Hacking Detections 22 | . 4 . 11 . . . 7 Full Trace Events 1 | . . . 1 . . . . Feedback Events . | . . . . . . . . Feedback Blocked . | . . . . . . . . Robot Schematics Acquired . | . . . . . . . . Robots Built . | . . . . . . . . Authchips . | . . . . . . . . Time . | . . . . . . . . Total Robot Build Rating . | . . . . . . . . Part Schematics Acquired 1 | . . . 1 . . . . Parts Built . | . . . . . . . . Authchips . | . . . . . . . . Time . | . . . . . . . . Total Part Build Rating . | . . . . . . . . Part Studies Acquired 4 | . . . 3 . . . 1 Parts Repaired 2 | . . . 2 . . . . Time 77 | . . . 77 . . . . Parts Recycled . | . . . . . . . . Recycled Matter . | . . . . . . . . Retrieved Matter . | . . . . . . . . Retrieved Components . | . . . . . . . . Parts Scanalyzed 1 | . . . 1 . . . . Part Schematics Acquired 1 | . . . 1 . . . . Parts Damaged . | . . . . . . . . Bothacking | -11 -10 -10 -9 -9 -9 -8 -8 ------------ Run | Yrd Mat Min Mat Min Exi Min Mat Used RIF Installer . | . . . . . . . . Robots Hacked . | . . . . . . . . Non-combat . | . . . . . . . . Combat . | . . . . . . . . Robot Hacks Applied . | . . . . . . . . Relay Couplers Released 3 | . . . . . . . 3 Machine Destruction 3 | . . . . . . . 3 Fabnet Peak Effective % . | . . . . . . . . Robots Rewired . | . . . . . . . . Allies Hacked . | . . . . . . . . Hacks Repelled . | . . . . . . . . Allies | -11 -10 -10 -9 -9 -9 -8 -8 -------- Run | Yrd Mat Min Mat Min Exi Min Mat Total Allies 3 | . . . . 2 . . 1 Largest Group 2 | . . . . 2 2 . 1 Highest-Rated Group 41 | . . . . 41 41 . 10 Highest-Rated Ally 31 | . . . . 31 31 . 10 Total Orders 3 | . . . . . . . 3 STAY 2 | . . . . . . . 2 FOLLOW 1 | . . . . . . . 1 Ally Attacks . | . . . . . . . . Total Damage . | . . . . . . . . Kills . | . . . . . . . . Allies Corrupted . | . . . . . . . . Allies Melted . | . . . . . . . . Intel | -11 -10 -10 -9 -9 -9 -8 -8 ------- Run | Yrd Mat Min Mat Min Exi Min Mat Active Infowar (turns) 1095 | . . . . . . . 1095 Traps 1095 | . . . . . . . 1095 Robot Analysis Total 4 | . 1 . 1 . . . 2 Derelict Logs Recovered 4 | . . 2 . 2 . . . Drone Launches . | . . . . . . . . Drone Recoveries . | . . . . . . . . Exploration | -11 -10 -10 -9 -9 -9 -8 -8 ------------- Run | Yrd Mat Min Mat Min Exi Min Mat Turns Passed 7370 | 3 1257 576 2116 688 339 383 2008 Spaces Moved 3789 | 3 518 371 1154 439 209 224 871 Core . | . . . . . . . . Treads 1169 | . 76 . 126 105 208 224 430 Legs 3 | 3 . . . . . . . Wheels 2617 | . 442 371 1028 334 1 . 441 Hover . | . . . . . . . . Flight . | . . . . . . . . Fastest Speed 120 | 120 130 145 135 135 135 161 135 Average Speed 146 | 120 146 145 140 141 160 161 152 Slowest Speed 320 | 120 160 145 250 250 161 161 320 Overloaded Moves . | . . . . . . . . Propulsion Burnouts . | . . . . . . . . Robots Hopped . | . . . . . . . . Potential Cave-ins 1 | . . . . 1 . . . Cave-ins Triggered 1 | . . . . 1 . . . Exploration Rate (%) 68 | 2 94 92 91 97 59 53 61 Regions Visited 7 Branch Regions 4 Pre-discovered Areas 7 | . . 1 1 1 1 . 3 Known Exits Taken 3 | . . 1 1 . . 1 . Unknown Exits Taken 4 | 1 1 . . 1 1 . . Scrap Searched 4 | . . 1 . 2 . 1 . Spaces Dug 59 | . 28 . 25 3 . . 3 Terrain Destroyed 381 | . 54 . 165 64 . 7 91 Melee . | . . . . . . . . Projectile 6 | . . . . . . . 6 AOE 375 | . 54 . 165 64 . 7 85 Terrain Rammed . | . . . . . . . . Walls Destroyed . | . . . . . . . . Machines Disabled . | . . . . . . . . Actions | -11 -10 -10 -9 -9 -9 -8 -8 --------- Run | Yrd Mat Min Mat Min Exi Min Mat Total 5188 | 2 916 400 1507 484 214 240 1425 Wait 934 | . 309 11 201 21 . 9 383 Move 3781 | 2 517 370 1153 437 208 223 871 Hop . | . . . . . . . . Pick Up 53 | . 4 4 23 2 1 . 19 Fast Attach 19 | . 5 1 5 1 . . 7 Attach 24 | . 4 2 5 3 . 2 8 Detach 9 | . 2 1 . . 2 . 4 Swap 53 | . 11 . 19 1 1 . 21 Drop 47 | . 4 2 13 . 2 . 26 Fire 259 | . 55 9 88 17 . 4 86 Melee . | . . . . . . . . Ram . | . . . . . . . . Kick . | . . . . . . . . Crush 3 | . . . . 1 . 2 . Escape Stasis 1 | . . . . 1 . . . Rewire . | . . . . . . . . Trap . | . . . . . . . . Miscellaneous 5 | . 5 . . . . . . Route ------- -11/Scrapyard -10/Materials (discovered 4 exits: *Mat x3 / [*Min]) -10/Mines (discovered 3 exits: *Mat x2 / [*Sub]) -9/Materials (discovered 5 exits: *Mat x3 / *Min x2) -9/Mines (discovered 3 exits: *Mat x2 / *Exi) -9/Exiles -8/Mines -8/Materials (discovered 3 exits: *Fac x3) History --------- Turn | Location | Event 1 | -11/Scrapyard | Discovered new exit (range 1) 4 | -11/Scrapyard | Entered Materials 205 | -10/Materials | Discovered new exit (range 16) 307 | -10/Materials | Build established: Mutant 407 | -10/Materials | Discovered new exit (range 10) 907 | -10/Materials | Discovered new exit (range 9) 1254 | -10/Materials | Discovered new exit (range 6) 1261 | -10/Materials | Entered Mines 1304 | -10/Mines | Discovered new exit (range 9) 1322 | -10/Mines | Learned location of Zion (-6) 1371 | -10/Mines | Received a Rocket Launcher from a helpful Derelict 1468 | -10/Mines | Found a damaged Exp. Sensor Array with a note attached 1471 | -10/Mines | Found Prototype Device 1500 | -10/Mines | Identified Exp. Sensor Array 1547 | -10/Mines | Joined a pair of Derelicts in attacking an 0b10 outpost 1724 | -10/Mines | Discovered new exit (range 8) 1795 | -10/Mines | Identified exit to Materials 1837 | -10/Mines | Entered Materials 1837 | -9/Materials | Evolved 2 slots: Propulsion x1, Utility x1 2201 | -9/Materials | Central database locked down 2285 | -9/Materials | Repaired Hvy. Ion Engine 2312 | -9/Materials | Repaired Lgt. Treads 2884 | -9/Materials | Discovered new exit (range 11) 2940 | -9/Materials | Learned location of Mines (-8) 2968 | -9/Materials | Learned Storage trap positions 2986 | -9/Materials | Identified exit to Mines 2986 | -9/Materials | Identified exit to Materials 2994 | -9/Materials | Learned Storage trap positions 2995 | -9/Materials | Learned Storage trap positions 3004 | -9/Materials | Learned location of 1 exit from Storage 3024 | -9/Materials | Learned location of 1 exit from Recycling 3046 | -9/Materials | Build established: Scavenger-Mutant 3233 | -9/Materials | Discovered exit to Mines (range 10) 3382 | -9/Materials | Discovered exit to Materials (range 3) 3953 | -9/Materials | Entered Mines 4031 | -9/Mines | Build established: Mutant 4031 | -9/Mines | Discovered exit to Materials (range 10) 4090 | -9/Mines | Assembled infested the area 4101 | -9/Mines | Discovered exit to Materials (range 11) 4109 | -9/Mines | Crushed by falling debris 4110 | -9/Mines | Core integrity fell below 50% 4164 | -9/Mines | Lost 5 parts (1p1n2u1w) 4632 | -9/Mines | Deemed a non-threat by the Exiles lab entrance 4633 | -9/Mines | Discovered new exit (range 5) 4641 | -9/Mines | Entered Exiles 4641 | -9/Exiles | Accompanied by 2 allies 4671 | -9/Exiles | Led the pair of lost Derelicts to a safe place 4681 | -9/Exiles | Met 8R-AWN 4710 | -9/Exiles | Met EX-HEX 4754 | -9/Exiles | Met EX-BIN 4775 | -9/Exiles | Aligned with FarCom system 4776 | -9/Exiles | Given EX-Vault access code 4813 | -9/Exiles | Opened EX-Vault 4823 | -9/Exiles | Found Gui. Plasma Cannon 4859 | -9/Exiles | Warned to stay clear of 0b10 Research branches 4904 | -9/Exiles | Met EX-DEC 4960 | -9/Exiles | Discovered new exit (range 10) 4980 | -9/Exiles | Left Exiles lab with Gui. Plasma Cannon 4980 | -9/Exiles | Entered Mines 5120 | -8/Mines | Discovered exit to Materials (range 16) 5363 | -8/Mines | Entered Materials 5363 | -8/Materials | Evolved 2 slots: Utility x2 6093 | -8/Materials | Central database locked down 6093 | -8/Materials | Discovered new exit (range 13) 6168 | -8/Materials | Build established: Hacker-Mutant 6527 | -8/Materials | Discovered new exit (range 12) 6685 | -8/Materials | Learned Storage emergency access door positions 6750 | -8/Materials | Learned location of 1 exit from Recycling 6803 | -8/Materials | Learned 2 Lower Caves zone layouts 6935 | -8/Materials | Identified exit to Factory 7040 | -8/Materials | Learned Factory trap positions 7109 | -8/Materials | Learned Factory emergency access door positions 7257 | -8/Materials | Garrison activated, responded to threat 7371 | -8/Materials | Self-destructed Last Messages --------------- 07291_ Alarm Trap short circuited. 07291_ An alarm sounds. 07291_ ALERT: Alarm triggered, dispatching investigation squad. 07293_ K-01 Serf collects debris. 07293_ S-10 Pest destroyed. 07295_ Chain reaction triggered in Corrupted Lgt. Ion Engine. 07295_ S-10 Pest destroyed. 07296_ K-01 Serf collects debris. 07299_ Acquired 1 matter. 07302_ Acquired 16 matter. 07310_ Door malfunctions. 07315_ Slug penetrates Wall. 07336_ Acquired 1 matter. 07353_ System corrupted: Matter fused (-5). 07364_ Lgt. Armor Plating destroyed. 07364_ Critical hit (Burn: +37). 07370_ ALERT: Garrison Access compromised, dispatching multiple assault carriers. Map ----- +----------------------------------------------------+ | | | | | | | | | | | | | | | | | | | | | | | ??????????????????????????????????????? | | ??????????????????????????????????????? | | ??????????????????????????????????????? | | ??????????????????????????????????????? | | ??????????????????????????????????????? | | ????????????????#####?????????????????? | | ???????????????""" #?????????????????? | | ?#######???????"T" #?????????????????? | | ?# ????Y ??????????????????? | | ?# ?#### ????#??????????????? | | ??? # # !???? +?????????????## | | ????? # # ???? #?????????????# | | ???????? / ##/##### #####?????????# | | ??????????# %???????# | | ??????????# @ Y=???????# | | ??????????# % ####??????????????# | | ??????????# #?????????????????# | | ?????#+#### #?????????????????# | | ?????# ########??????????# | | ?????# #! = #??????????## | | ?????# #### [%= # #???????????? | | ??????????# # == = #???????????? | | ??????????# # == #???????????? | | ??????????# # = [ ????????????? | | ??? ????# # ??????????????? | | ?? ## ##/###?????????????? | | ?? / #????????????## | | ??? # #????????????# | | ??? ?# ##????????????# | | ??? ??####### ##### #?????????????# | | ?? ? ?????# % # #?????????????# | | ???????????# [ T # #?????????????## | | ???????????# ! # #??????????????? | | ???????????# # #??????????????? | | ???????????# !! # #??????????????? | | ???????????# !! %"=#??????????????? | | ???????????# %*!#%#########??????? | | ???????????# ! ![!#=## #??????? | | ???????????########%[=/## #??????? | +----------------------------------------------------+ Best States ------------- Heat Dissipation 31 Energy Generation 14 Energy Capacity 280 Matter Stores 300 Matter Capacity 300 Sight Range 16 Terrain Scan Density 10 Armor Coverage 375 Evasion (%) 40 Targeting Accuracy 5 Recoil Reduction 3 Salvage Targeting 1 Offensive Hacking 10 Defensive Hacking 10 Item Schematics ----------------- Plasma Cutter | -9/Materials | Scanalyzed Robot Schematics ------------------ None Fabricated ------------ Nothing Repaired ---------- Hvy. Ion Engine | 20% | -9/Materials Lgt. Treads | 18% | -9/Materials Studied --------- Com. Wheel | -9/Materials | Hacked Lgt. EM Pulse Cannon | -9/Materials | Hacked Rocket Launcher | -9/Materials | Hacked Adv. Treads | -8/Materials | Hacked Alien Tech Used ----------------- None Achievements -------------- None Challenges ------------ None Game ------ Seed CommThrusterHoverbase Manual? 0 Play Time 00:50:51 Cumulative 328.7 hours Start 2026.03.11 @ 12:21:54 End 2026.03.11 @ 17:51:03 Sessions 7 Manual Loads 0 Difficulty Rogue Special Mode None Game No. 271 Rogue 235 Adventurer 36 Explorer 0 Win Type - Total 4 Types 2/0/0/1/0/0/0/1/0/0 Lore% 59 Gallery% 62 Achievement% 43 Wizard Run 0 Options --------- Layout 1 ASCII 0 Keyboard 0 Movement Numpad Keybinds 0 Fullscreen 1 Font 48/Smallcaps Map View 50x35 Zoom Use 0% Tactical HUD 1 Map Filters NONE Filters NONE Steam 1 RUN: 1ed885be-fb07-4f7b-9dac-1302521c9fbf